lending/lending_fUSD_20250808
["ID","MTS","AMOUNT","RATE_DAILY","PERIOD"]
[378026312,1754674289769,-400.0,0.00018666,2]
[378026313,1754674289779,-400.0,0.00018666,2]
[378026314,1754674289788,-400.0,0.00018666,2]
[378026315,1754674289797,-486.27,0.00018666,2]
[378026316,1754674289807,-400.0,0.00018666,2]
[378026317,1754674289816,-400.0,0.00018666,2]
[378026318,1754674289825,-400.0,0.00018666,2]
[378026319,1754674289835,-400.0,0.00018666,2]
[378026320,1754674289847,-484.85,0.00018666,2]
[378026321,1754674289857,-400.0,0.00018666,2]
[378026322,1754674289866,-151.0,0.00018666,2]
[378026323,1754674289876,-400.0,0.00018666,2]
[378026324,1754674289885,-400.0,0.00018666,2]
[378026325,1754674289894,-400.0,0.00018666,2]
[378026326,1754674289904,-432.17,0.00018666,2]
[378026327,1754674289914,-400.0,0.00018666,2]
[378026328,1754674289923,-400.0,0.00018666,2]
[378026329,1754674289933,-1178.17,0.00018666,2]
[378026330,1754674289942,-400.0,0.00018666,2]
[378026331,1754674289952,-400.0,0.00018666,2]
[378026332,1754674289961,-456.42,0.00018666,2]
[378026333,1754674289971,-400.0,0.00018666,2]
[378026334,1754674289980,-400.0,0.00018666,2]
[378026335,1754674289990,-534.77,0.00018666,2]
[378026336,1754674290000,-400.0,0.00018666,2]
[378026337,1754674290010,-400.0,0.00018666,2]
[378026338,1754674290019,-155.65444,0.00018666,2]
[378026339,1754674290029,-151.0,0.00018666,2]
[378026340,1754674290039,-151.0,0.00018666,2]
[378026341,1754674290048,-4517.84,0.00018666,2]
[378026342,1754674290058,-400.0,0.00018666,2]
[378026343,1754674290068,-435.31,0.00018666,2]
[378026344,1754674290083,-400.0,0.00018666,2]
[378026345,1754674290094,-400.0,0.00018666,2]
[378026346,1754674290103,-400.0,0.00018666,2]
[378026347,1754674290112,-477.72,0.00018666,2]
[378026348,1754674290122,-400.0,0.00018666,2]
[378026349,1754674290131,-400.0,0.00018666,2]
[378026350,1754674290140,-400.0,0.00018666,2]
[378026351,1754674290151,-4062.08,0.00018666,2]
[378026352,1754674290163,-400.0,0.00018666,2]
[378026353,1754674290174,-263.212378,0.00018666,2]
[378026354,1754674290185,-263.212378,0.00018666,2]
[378026355,1754674290194,-500.0,0.00018666,2]
[378026356,1754674290203,-263.212378,0.00018666,2]
[378026357,1754674290212,-260.9596678,0.00018666,2]
[378026358,1754674290221,-263.212378,0.00018666,2]
[378026359,1754674290230,-151.0,0.00018666,2]
[378026360,1754674290239,-151.0,0.00018666,2]
[378026361,1754674290249,-400.0,0.00018666,2]
[378026362,1754674290258,-400.0,0.00018666,2]
[378026363,1754674290267,-400.0,0.00018666,2]
[378026364,1754674290276,-400.0,0.00018666,2]
[378026365,1754674290285,-151.0,0.00018666,2]
[378026366,1754674290294,-151.0,0.00018666,2]
[378026367,1754674290303,-400.0,0.00018666,2]
[378026368,1754674290313,-188.35948581,0.00018666,2]
[378026369,1754674290322,-735.5,0.00018666,2]
[378026370,1754674290332,-1368.24,0.00018666,2]
[378026371,1754674290341,-400.0,0.00018666,2]
[378026372,1754674290350,-158.962264,0.00018666,2]
[378026373,1754674290359,-400.0,0.00018666,2]
[378026374,1754674290369,-400.0,0.00018666,2]
[378026375,1754674290378,-400.0,0.00018666,2]
[378026376,1754674290387,-4038.164008,0.00018666,2]
[378026377,1754674290396,-4038.164008,0.00018666,2]
[378026378,1754674290405,-400.0,0.00018666,2]
[378026379,1754674290415,-400.0,0.00018666,2]
[378026380,1754674290424,-4038.164008,0.00018666,2]
[378026381,1754674290435,-4038.164008,0.00018666,2]
[378026382,1754674290444,-400.0,0.00018666,2]
[378026383,1754674290453,-151.0,0.00018666,2]
[378026384,1754674290462,-151.0,0.00018666,2]
[378026385,1754674290472,-400.0,0.00018666,2]
[378026386,1754674290481,-1187.72,0.00018666,2]
[378026387,1754674290490,-400.0,0.00018666,2]
[378026388,1754674290501,-400.0,0.00018666,2]
[378026389,1754674290512,-400.0,0.00018666,2]
[378026390,1754674290521,-450.77,0.00018666,2]
[378026391,1754674290532,-400.0,0.00018666,2]
[378026392,1754674290542,-400.0,0.00018666,2]
[378026393,1754674290552,-400.0,0.00018666,2]
[378026394,1754674290562,-400.0,0.00018666,2]
[378026395,1754674290572,-400.0,0.00018666,2]
[378026396,1754674290581,-400.0,0.00018666,2]
[378026397,1754674290591,-400.0,0.00018666,2]
[378026398,1754674290600,-151.0,0.00018666,2]
[378026399,1754674290610,-151.51561576,0.00018666,2]
[378026400,1754674290619,-1471.83,0.00018666,2]
[378026401,1754674290628,-151.0,0.00018666,2]
[378026402,1754674290638,-400.0,0.00018666,2]
[378026403,1754674290647,-557.2,0.00018666,2]
[378026404,1754674290658,-400.0,0.00018666,2]
[378026405,1754674290667,-400.0,0.00018666,2]
[378026406,1754674290677,-151.0,0.00018666,2]
[378026407,1754674290686,-436.5,0.00018666,2]
[378026408,1754674290696,-439.47,0.00018666,2]
[378026409,1754674290705,-400.0,0.00018666,2]
[378026410,1754674290714,-151.0,0.00018666,2]
[378026411,1754674290723,-1359.72,0.00018666,2]
[378026412,1754674290733,-400.0,0.00018666,2]
[378026413,1754674290743,-400.0,0.00018666,2]
[378026414,1754674290753,-400.0,0.00018666,2]
[378026415,1754674290762,-151.0,0.00018666,2]
[378026416,1754674290772,-400.0,0.00018666,2]
[378026417,1754674290782,-1098.38,0.00018666,2]
[378026418,1754674290791,-400.0,0.00018666,2]
[378026419,1754674290801,-400.0,0.00018666,2]
[378026420,1754674290810,-400.0,0.00018666,2]
[378026421,1754674290820,-505.49,0.00018666,2]
[378026422,1754674290829,-493.47,0.00018666,2]
[378026423,1754674290840,-400.0,0.00018666,2]
[378026424,1754674290849,-400.0,0.00018666,2]
[378026425,1754674290859,-400.0,0.00018666,2]
[378026426,1754674290868,-412.55,0.00018666,2]
[378026427,1754674290878,-808.39,0.00018666,2]
[378026428,1754674290888,-496.49,0.00018666,2]
[378026429,1754674290898,-400.0,0.00018666,2]
[378026430,1754674290907,-400.0,0.00018666,2]
[378026431,1754674290917,-400.0,0.00018666,2]
[378026432,1754674290926,-248.52,0.00018666,2]
[378026433,1754674290937,-400.0,0.00018666,2]
[378026434,1754674290946,-1155.05,0.00018666,2]
[378026435,1754674290955,-400.0,0.00018666,2]
[378026436,1754674290965,-400.0,0.00018666,2]
[378026437,1754674290974,-289.003139,0.00018666,2]
[378026438,1754674290984,-485.06,0.00018666,2]
[378026439,1754674290993,-400.0,0.00018666,2]
[378026440,1754674291003,-521.07,0.00018666,2]
[378026441,1754674291012,-400.0,0.00018666,2]
[378026442,1754674291022,-643.05,0.00018666,2]
[378026443,1754674291031,-760.76,0.00018666,2]
[378026444,1754674291041,-400.0,0.00018666,2]
[378026445,1754674291050,-489.19,0.00018666,2]
[378026446,1754674291059,-400.0,0.00018666,2]
[378026447,1754674291069,-576.62,0.00018666,2]
[378026448,1754674291082,-400.0,0.00018666,2]
[378026449,1754674291093,-437.71,0.00018666,2]
[378026450,1754674291102,-1259.56,0.00018666,2]
[378026451,1754674291112,-704.59,0.00018666,2]
[378026452,1754674291122,-400.0,0.00018666,2]
[378026453,1754674291131,-919.49,0.00018666,2]
[378026454,1754674291141,-400.0,0.00018666,2]
[378026455,1754674291151,-508.27,0.00018666,2]
[378026456,1754674291161,-400.0,0.00018666,2]
[378026457,1754674291171,-400.0,0.00018666,2]
[378026458,1754674291181,-2507.35,0.00018666,2]
[378026459,1754674291190,-1124.56,0.00018666,2]
[378026460,1754674291199,-268.141065,0.00018666,2]
[378026461,1754674291209,-424.0,0.00018666,2]
[378026462,1754674291218,-268.141065,0.00018666,2]
[378026463,1754674291228,-400.0,0.00018666,2]
[378026464,1754674291238,-1219.23,0.00018666,2]
[378026465,1754674291247,-400.0,0.00018666,2]
[378026466,1754674291257,-400.0,0.00018666,2]
[378026467,1754674291266,-862.990561,0.00018666,2]
[378026468,1754674291275,-862.990561,0.00018666,2]
[378026469,1754674291284,-344.04367914,0.00018666,2]
[378026470,1754674291294,-738.95,0.00018666,2]
[378026471,1754674291303,-862.990561,0.00018666,2]
[378026472,1754674291312,-862.990561,0.00018666,2]
[378026473,1754674291322,-3428.22,0.00018666,2]
[378026474,1754674291331,-739.75,0.00018666,2]
[378026475,1754674291341,-705.62,0.00018666,2]
[378026476,1754674291350,-400.0,0.00018666,2]
[378026477,1754674291359,-429.41,0.00018666,2]
[378026478,1754674291369,-22590.06,0.00018666,2]
[378026479,1754674291378,-408.09,0.00018666,2]
[378026480,1754674291387,-400.0,0.00018666,2]
[378026481,1754674291397,-400.0,0.00018666,2]
[378026482,1754674291406,-400.0,0.00018666,2]
[378026483,1754674291416,-151.0,0.00018666,2]
[378026484,1754674291425,-444.79,0.00018666,2]
[378026485,1754674291436,-151.0,0.00018666,2]
[378026486,1754674291445,-203.65,0.00018666,2]
[378026487,1754674291455,-400.0,0.00018666,2]
[378026488,1754674291464,-203.65,0.00018666,2]
[378026489,1754674291474,-1009.83,0.00018666,2]
[378026490,1754674291483,-400.0,0.00018666,2]
[378026491,1754674291493,-341.333079,0.00018666,2]
[378026492,1754674291502,-272.03377831,0.00018666,2]
[378026493,1754674291511,-341.333079,0.00018666,2]
[378026494,1754674291521,-400.0,0.00018666,2]
[378026495,1754674291531,-612.57,0.00018666,2]
[378026496,1754674291541,-151.0,0.00018666,2]
[378026497,1754674291550,-151.0,0.00018666,2]
[378026498,1754674291560,-400.0,0.00018666,2]
[378026499,1754674291570,-151.0,0.00018666,2]
[378026500,1754674291579,-1019.52,0.00018666,2]
[378026501,1754674291588,-151.0,0.00018666,2]
[378026502,1754674291598,-400.0,0.00018666,2]
[378026503,1754674291607,-412.85,0.00018666,2]
[378026504,1754674291617,-400.0,0.00018666,2]
[378026505,1754674291627,-602.24,0.00018666,2]
[378026506,1754674291636,-400.0,0.00018666,2]
[378026507,1754674291646,-400.0,0.00018666,2]
[378026508,1754674291655,-702.83,0.00018666,2]
[378026509,1754674291665,-400.0,0.00018666,2]
[378026510,1754674291674,-400.0,0.00018666,2]
[378026511,1754674291684,-401.02,0.00018666,2]
[378026512,1754674291694,-400.0,0.00018666,2]
[378026513,1754674291704,-480.03,0.00018666,2]
[378026514,1754674291714,-263.553752,0.00018666,2]
[378026515,1754674291723,-414.37,0.00018666,2]
[378026516,1754674291734,-263.553752,0.00018666,2]
[378026517,1754674291744,-400.0,0.00018666,2]
[378026518,1754674291754,-420.84,0.00018666,2]
[378026519,1754674291763,-469.13,0.00018666,2]
[378026520,1754674291773,-400.0,0.00018666,2]
[378026521,1754674291783,-1156.43,0.00018666,2]
[378026522,1754674291792,-400.0,0.00018666,2]
[378026523,1754674291804,-1581.58,0.00018666,2]
[378026524,1754674291814,-1173.27,0.00018666,2]
[378026525,1754674291824,-2082.95,0.00018666,2]
[378026526,1754674291834,-414.41,0.00018666,2]
[378026527,1754674291843,-400.0,0.00018666,2]
[378026528,1754674291853,-1355.51,0.00018666,2]
[378026529,1754674291862,-400.0,0.00018666,2]
[378026530,1754674291871,-712.97,0.00018666,2]
[378026531,1754674291881,-400.0,0.00018666,2]
[378026532,1754674291890,-400.0,0.00018666,2]
[378026533,1754674291899,-1433.19,0.00018666,2]
[378026534,1754674291910,-400.0,0.00018666,2]
[378026535,1754674291919,-400.0,0.00018666,2]
[378026536,1754674291929,-1279.98,0.00018666,2]
[378026537,1754674291939,-400.0,0.00018666,2]
[378026538,1754674291949,-2544.43,0.00018666,2]
[378026539,1754674291958,-3304.91,0.00018666,2]
[378026540,1754674291967,-545.33,0.00018666,2]
[378026541,1754674291977,-400.0,0.00018666,2]
[378026542,1754674291987,-1361.67,0.00018666,2]
[378026543,1754674291997,-400.0,0.00018666,2]
[378026544,1754674292006,-680.15,0.00018666,2]
[378026545,1754674292016,-400.0,0.00018666,2]
[378026546,1754674292027,-771.9,0.00018666,2]
[378026547,1754674292037,-446.42,0.00018666,2]
[378026548,1754674292047,-400.0,0.00018666,2]
[378026549,1754674292056,-1015.86,0.00018666,2]
[378026550,1754674292066,-400.0,0.00018666,2]
[378026551,1754674292080,-400.0,0.00018666,2]
[378026552,1754674292089,-400.0,0.00018666,2]
[378026553,1754674292099,-6584.79,0.00018666,2]
[378026554,1754674292109,-400.0,0.00018666,2]
[378026555,1754674292119,-2692.03,0.00018666,2]
[378026556,1754674292128,-400.0,0.00018666,2]
[378026557,1754674292138,-472.84,0.00018666,2]
[378026558,1754674292148,-151.0,0.00018666,2]
[378026559,1754674292158,-151.0,0.00018666,2]
[378026560,1754674292167,-400.0,0.00018666,2]
[378026561,1754674292177,-645.58,0.00018666,2]
[378026562,1754674292187,-400.0,0.00018666,2]
[378026563,1754674292196,-400.0,0.00018666,2]
[378026564,1754674292205,-400.0,0.00018666,2]
[378026565,1754674292215,-400.0,0.00018666,2]
[378026566,1754674292225,-434.44,0.00018666,2]
[378026567,1754674292234,-510.44,0.00018666,2]
[378026568,1754674292244,-400.0,0.00018666,2]
[378026569,1754674292254,-400.0,0.00018666,2]
[378026570,1754674292263,-400.0,0.00018666,2]
[378026571,1754674292274,-400.0,0.00018666,2]
[378026572,1754674292283,-637.96,0.00018666,2]
[378026573,1754674292292,-400.0,0.00018666,2]
[378026574,1754674292303,-943.37,0.00018666,2]
[378026575,1754674292314,-4087.5,0.00018666,2]
[378026576,1754674292325,-400.0,0.00018666,2]
[378026577,1754674292336,-400.0,0.00018666,2]
[378026578,1754674292345,-1000.0,0.00018666,2]
[378026579,1754674292355,-1167.59,0.00018666,2]
[378026580,1754674292365,-839.14,0.00018666,2]
[378026581,1754674292374,-423.67,0.00018666,2]
[378026582,1754674292384,-1923.32,0.00018666,2]
[378026583,1754674292394,-400.0,0.00018666,2]
[378026584,1754674292404,-349.22147166,0.00018666,2]
[378026585,1754674292415,-308.087991,0.00018666,2]
[378026586,1754674292434,-308.087991,0.00018666,2]
[378026587,1754674292456,-400.0,0.00018666,2]
[378026588,1754674292471,-400.0,0.00018666,2]
[378026589,1754674292482,-2534.72,0.00018666,2]
[378026590,1754674292492,-3221.54,0.00018666,2]
[378026591,1754674292503,-400.0,0.00018666,2]
[378026592,1754674292515,-308.087991,0.00018666,2]
[378026593,1754674292525,-308.087991,0.00018666,2]
[378026594,1754674292535,-165.49320436,0.00018666,2]
[378026595,1754674292545,-400.0,0.00018666,2]
[378026596,1754674292555,-151.0,0.00018666,2]
[378026597,1754674292564,-151.0,0.00018666,2]
[378026598,1754674292574,-2686.59,0.00018666,2]
[378026599,1754674292585,-151.0,0.00018666,2]
[378026600,1754674292595,-186.530112,0.00018666,2]
[378026601,1754674292604,-2767.77,0.00018666,2]
[378026602,1754674292614,-4079.49,0.00018666,2]
[378026603,1754674292623,-509.30031812,0.00018666,2]
[378026604,1754674292633,-1045.66,0.00018666,2]
[378026605,1754674292643,-151.0,0.00018667,2]
[378026606,1754674292652,-151.0,0.00018667,2]
[378026607,1754674292662,-833.25,0.00018667,2]
[378026608,1754674292672,-153.764847,0.00018667,2]
[378026609,1754674292682,-151.0,0.00018667,2]
[378026610,1754674292692,-151.0,0.00018667,2]
[378026611,1754674292701,-151.0,0.00018667,2]
[378026612,1754674292711,-151.0,0.00018667,2]
[378026613,1754674292721,-151.0,0.00018667,2]
[378026614,1754674292731,-3290.29,0.00018667,2]
[378026615,1754674292740,-268.141065,0.00018667,2]
[378026616,1754674292750,-268.141065,0.00018667,2]
[378026617,1754674292760,-2369.18,0.00018667,2]
[378026618,1754674292771,-151.0,0.00018667,2]
[378026619,1754674292781,-151.0,0.00018667,2]
[378026620,1754674292791,-203.65,0.00018667,2]
[378026621,1754674292800,-13166.57,0.00018667,2]
[378026622,1754674292810,-203.65,0.00018667,2]
[378026623,1754674292820,-341.333079,0.00018667,2]
[378026624,1754674292829,-341.333079,0.00018667,2]
[378026625,1754674292839,-151.0,0.00018667,2]
[378026626,1754674292851,-151.0,0.00018667,2]
[378026627,1754674293056,-1590.7,0.00018667,2]
[378026628,1754674293066,-1258.97,0.00018667,2]
[378026629,1754674293079,-263.553752,0.00018667,2]
[378026630,1754674293088,-2052.34,0.00018667,2]
[378026631,1754674293097,-263.553752,0.00018667,2]
[378026632,1754674293107,-508.01,0.00018667,2]
[378026633,1754674293117,-5234.06,0.00018667,2]
[378026634,1754674293126,-400.0,0.00018667,2]
[378026635,1754674293136,-2455.21,0.00018667,2]
[378026636,1754674293145,-1846.96,0.00018667,2]
[378026637,1754674293156,-1243.92,0.00018667,2]
[378026638,1754674293165,-1638.01,0.00018667,2]
[378026639,1754674293174,-1639.76,0.00018667,2]
[378026640,1754674293184,-151.0,0.00018667,2]
[378026641,1754674293194,-1386.66,0.00018667,2]
[378026642,1754674293204,-2763.15,0.00018667,2]
[378026643,1754674293213,-3536.52,0.00018667,2]
[378026644,1754674293222,-2140.87,0.00018667,2]
[378026645,1754674293232,-308.087991,0.00018667,2]
[378026646,1754674293241,-1711.31,0.00018667,2]
[378026647,1754674293251,-308.087991,0.00018667,2]
[378026648,1754674293260,-151.0,0.00018667,2]
[378026649,1754674293270,-449.95,0.00018667,2]
[378026650,1754674293281,-189.54371,0.00018668,2]
[378026651,1754674293290,-151.0,0.00018668,2]
[378026652,1754674293299,-263.212378,0.00018668,2]
[378026653,1754674293309,-263.212378,0.00018668,2]
[378026654,1754674293318,-4038.164008,0.00018668,2]
[378026655,1754674293327,-4038.164008,0.00018668,2]
[378026656,1754674293337,-833.25,0.00018672,2]
[378026657,1754674293346,-500.0,0.00018673,2]
[378026658,1754674293355,-500.0,0.00018673,2]
[378026659,1754674293365,-500.0,0.00018673,2]
[378026660,1754674293374,-500.0,0.00018673,2]
[378026661,1754674293384,-500.0,0.00018673,2]
[378026662,1754674293393,-10746.90782292,0.00018682,2]
[378026663,1754674293402,-316.86,0.0001869,2]
[378026664,1754674293412,-500.0,0.00018696,2]
[378026665,1754674293421,-943.37,0.00018696,2]
[378026666,1754674293430,-155.45722429,0.00018697,2]
[378026667,1754674293439,-2040.97353554,0.00018697,2]
[378026668,1754674293449,-1900.0,0.000187,6]
[378026669,1754674293459,-633.72,0.000187,2]
[378026670,1754674293469,-6953.22620868,0.0001871,2]
[378026671,1754674293478,-155.612861,0.00018711,2]
[378026672,1754674293487,-151.0,0.00018711,2]
[378026673,1754674293497,-151.0,0.00018711,2]
[378026674,1754674293506,-862.990561,0.00018711,2]
[378026675,1754674293516,-862.990561,0.00018711,2]
[378026676,1754674293525,-151.0,0.00018711,2]
[378026677,1754674293534,-71398.6224324,0.00018714,2]
[378026678,1754674293544,-2672.81,0.00018714,2]
[378026679,1754674293553,-151.0,0.00018715,2]
[378026680,1754674293562,-8290.0225,0.00018715,2]
[378026681,1754674293571,-151.0,0.00018715,2]
[378026682,1754674293581,-151.0,0.00018715,2]
[378026683,1754674293590,-263.553752,0.00018715,2]
[378026684,1754674293599,-263.553752,0.00018715,2]
[378026685,1754674293609,-284.198732,0.00018715,2]
[378026686,1754674293619,-308.087991,0.00018715,2]
[378026687,1754674293628,-308.087991,0.00018715,2]
[378026688,1754674293638,-151.0,0.00018715,2]
[378026689,1754674293647,-1000.0,0.00018722,2]
[378026690,1754674293656,-1000.0,0.00018722,2]
[378026691,1754674293666,-1000.0,0.00018722,2]
[378026692,1754674293675,-938.0290606,0.00018722,2]
[378026693,1754674293685,-292.89019098,0.00018722,2]
[378026694,1754674293694,-151.0,0.00018728,2]
[378026695,1754674293704,-151.0,0.00018728,2]
[378026696,1754674293713,-151.0,0.00018728,2]
[378026697,1754674293723,-268.141065,0.00018728,2]
[378026698,1754674293732,-268.141065,0.00018728,2]
[378026699,1754674293742,-151.0,0.00018728,2]
[378026700,1754674293751,-203.65,0.00018728,2]
[378026701,1754674293760,-203.65,0.00018728,2]
[378026702,1754674293770,-341.333079,0.00018728,2]
[378026703,1754674293779,-341.333079,0.00018728,2]
[378026704,1754674293788,-188.4,0.00018743,2]
[378026705,1754674293798,-151.0,0.00018746,2]
[378026706,1754674293807,-151.0,0.00018746,2]
[378026707,1754674293817,-10661.74147704,0.00018746,2]
[378026708,1754674293827,-154.028631,0.00018752,2]
[378026709,1754674293836,-151.0,0.00018752,2]
[378026710,1754674293845,-151.0,0.00018752,2]
[378026711,1754674293855,-151.0,0.00018752,2]
[378026712,1754674293865,-151.0,0.00018752,2]
[378026713,1754674293874,-152.458545,0.00018752,2]
[378026714,1754674293885,-151.0,0.00018752,2]
[378026715,1754674293896,-151.0,0.00018752,2]
[378026716,1754674293906,-196.21698,0.00018752,2]
[378026717,1754674293915,-151.0,0.00018752,2]
[378026718,1754674293925,-263.212378,0.00018752,2]
[378026719,1754674293934,-263.212378,0.00018752,2]
[378026720,1754674293944,-151.0,0.00018752,2]
[378026721,1754674293953,-151.0,0.00018752,2]
[378026722,1754674293962,-4038.164008,0.00018752,2]
[378026723,1754674293972,-4038.164008,0.00018752,2]
[378026724,1754674293981,-151.0,0.00018752,2]
[378026725,1754674293991,-862.990561,0.00018752,2]
[378026726,1754674294000,-862.990561,0.00018752,2]
[378026727,1754674294009,-211.62674257,0.00018756,2]
[378026728,1754674294018,-160.0,0.00018756,2]
[378026729,1754674294028,-842.44706758,0.00018756,2]
[378026730,1754674294037,-457.64618948,0.00018758,2]
[378026731,1754674294046,-2040.97353554,0.00018765,2]
[378026732,1754674294055,-7210.49557841,0.00018765,2]
[378026733,1754674294065,-2072.44527392,0.00018787,2]
[378026734,1754674294076,-155.45722429,0.00018799,2]
[378026735,1754674294086,-38189.16407481,0.000188,3]
[378026736,1754674294095,-151.0,0.000188,2]
[378026737,1754674294104,-151.0,0.000188,2]
[378026738,1754674294114,-151.0,0.000188,2]
[378026739,1754674294125,-457.64618948,0.000188,3]
[378026740,1754674294135,-263.553752,0.000188,2]
[378026741,1754674294147,-263.553752,0.000188,2]
[378026742,1754674294167,-211.62674257,0.000188,3]
[378026743,1754674294185,-300.0,0.000188,6]
[378026744,1754674294203,-222.0,0.00018802,2]
[378026745,1754674294217,-593.59965216,0.00018817,2]
[378026746,1754674294226,-3674.62952334,0.0001882,2]
[378026747,1754674294235,-172.14711092,0.00018828,2]
[378026748,1754674294245,-2040.97353554,0.00018832,2]
[378026749,1754674294255,-153.0,0.00018837,2]
[378026750,1754674294264,-153.0,0.00018837,2]
[378026751,1754674294273,-153.0,0.00018837,2]
[378026752,1754674294283,-153.0,0.00018837,2]
[378026753,1754674294293,-153.0,0.00018837,2]
[378026754,1754674294302,-153.0,0.00018837,2]
[378026755,1754674294312,-153.0,0.00018837,2]
[378026756,1754674294321,-153.0,0.00018837,2]
[378026757,1754674294331,-150.0,0.0001885,2]
[378026758,1754674294340,-1252.0,0.00018889,2]
[378026759,1754674294350,-4142.0,0.00018889,2]
[378026760,1754674294360,-300.0,0.00018897,2]
[378026761,1754674294369,-181.37418698,0.000189,2]
[378026762,1754674294378,-300.0,0.000189,6]
[378026763,1754674294387,-2040.97353554,0.000189,2]
[378026764,1754674294397,-1335.79154779,0.000189,2]
[378026765,1754674294406,-3730.04990672,0.000189,2]
[378026766,1754674294415,-155.45722429,0.000189,2]
[378026767,1754674294425,-213.70748722,0.000189,2]
[378026768,1754674294436,-900.0,0.00018904,2]
[378026769,1754674294445,-1000.0,0.00018921,2]
[378026770,1754674294455,-500.0,0.00018921,2]
[378026771,1754674294464,-151.0,0.00018929,2]
[378026772,1754674294474,-400.0,0.00018938,2]
[378026773,1754674294483,-400.0,0.00018938,2]
[378026774,1754674294492,-661.11,0.00018938,2]
[378026775,1754674294501,-2954.91,0.00018938,2]
[378026776,1754674294510,-2275.54,0.00018938,2]
[378026777,1754674294520,-946.48,0.00018938,2]
[378026778,1754674294536,-848.32,0.00018938,2]
[378026779,1754674294555,-7691.76,0.00018938,2]
[378026780,1754674294570,-1032.75,0.00018938,2]
[378026781,1754674294580,-600.19,0.00018938,2]
[378026782,1754674294589,-1855.93,0.00018938,2]
[378026783,1754674294599,-675.93,0.00018938,2]
[378026784,1754674294608,-5291.16,0.00018938,2]
[378026785,1754674294617,-2731.24,0.00018938,2]
[378026786,1754674294627,-3569.89,0.00018938,2]
[378026787,1754674294635,-643.22,0.00018938,2]
[378026788,1754674294645,-1935.23,0.00018938,2]
[378026789,1754674294654,-2672.81,0.00018938,2]
[378026790,1754674294664,-400.0,0.00018938,2]
[378026791,1754674294673,-400.0,0.00018938,2]
[378026792,1754674294684,-774.94,0.00018938,2]
[378026793,1754674294693,-821.85,0.00018938,2]
[378026794,1754674294703,-538.44,0.00018938,2]
[378026795,1754674294712,-447.97,0.00018938,2]
[378026796,1754674294721,-500.0,0.00018939,2]
[378026797,1754674294730,-500.0,0.00018939,2]
[378026798,1754674294740,-500.0,0.00018939,2]
[378026799,1754674294749,-174.58057499,0.00018939,2]
[378026800,1754674294758,-947.0,0.00018939,2]
[378026801,1754674294767,-500.0,0.00018939,2]
[378026802,1754674294776,-150.0,0.00018939,2]
[378026803,1754674294785,-500.0,0.00018939,2]
[378026804,1754674294795,-500.0,0.00018939,2]
[378026805,1754674294804,-1798.0,0.00018939,2]
[378026806,1754674294814,-977.0,0.00018939,2]
[378026807,1754674294823,-152.043144,0.00018939,2]
[378026808,1754674294833,-152.896394,0.00018939,2]
[378026809,1754674294842,-152.325846,0.00018939,2]
[378026810,1754674294851,-151.0,0.00018939,2]
[378026811,1754674294860,-151.37169,0.00018939,2]